bitfinex/quotes_ETHUSD_20241123
["timestamp","ask_amount","ask_price","bid_price","bid_amount"]
[1732367818868,0.1,3406.5,3405.7,1.5039]
[1732367819309,0.1,3406.7,3405.8,0.0293565]
[1732367819671,0.1293151,3406.7,3405.7,1.5039]
[1732367819917,0.1,3406.5,3405.7,1.5039]
[1732367820080,0.1293151,3406.5,3405.7,1.5039]
[1732367820501,5.45780757,3406.5,3405.7,1.5039]
[1732367820814,0.1,3406.2,3405.7,1.5039]
[1732367821709,3.0,3406.4,3405.7,1.5039]
[1732367821887,3.1,3406.4,3405.7,1.5039]
[1732367822067,0.1,3406.2,3405.7,1.5039]
[1732367822698,3.0,3406.4,3405.7,1.5039]
[1732367822907,0.1,3406.2,3405.7,1.5039]
[1732367823081,0.1,3406.2,3405.8,8.85]
[1732367823881,3.0,3406.4,3405.8,8.85]
[1732367823882,3.1,3406.4,3405.8,8.85]
[1732367824087,0.1,3406.2,3405.8,8.85]
[1732367825785,0.1,3406.5,3405.8,8.85]
[1732367826019,0.1,3406.5,3405.9,8.85]
[1732367826385,0.1,3408.4,3404.6,0.85136649]
[1732367826386,0.2,3407.2,3406.2,1.5161]
[1732367826590,0.1,3406.8,3406.3,8.85]
[1732367826794,0.1,3406.8,3406.3,9.89101]
[1732367827106,0.1,3406.4,3406.0,8.894]
[1732367827482,0.2,3406.4,3406.0,8.894]
[1732367827729,3.2,3406.4,3406.0,8.894]
[1732367827888,0.1,3406.2,3406.0,8.894]
[1732367830385,0.0293151,3406.3,3406.0,8.894]
[1732367830622,0.1,3406.4,3406.0,8.894]
[1732367830623,0.1,3407.2,3406.2,1.5161]
[1732367830783,0.1,3407.2,3406.4,1.5161]
[1732367830991,0.2,3407.2,3406.5,8.87935186]
[1732367831292,0.2,3407.2,3406.5,8.85]
[1732367831790,0.1,3407.2,3406.5,8.85]
[1732367831987,0.1,3407.2,3406.6,1.03661]
[1732367832404,0.1,3407.5,3406.6,1.03661]
[1732367832405,0.1,3407.4,3406.6,1.06596183]
[1732367832628,0.1,3407.2,3406.6,1.06596183]
[1732367832805,0.2,3407.2,3406.7,1.14320618]
[1732367833327,0.2,3407.2,3406.5,8.85]
[1732367833749,0.1,3406.8,3406.5,8.85]
[1732367833902,0.1,3406.6,3406.5,8.85]
[1732367834089,0.2,3406.8,3406.5,8.85]
[1732367835018,0.2,3406.8,3406.1,8.85]
[1732367835325,0.2,3406.8,3406.1,9.00601]
[1732367835531,0.1,3406.8,3406.1,9.00601]
[1732367835733,0.2,3406.8,3406.2,0.02935485]
[1732367835895,0.2,3406.8,3406.1,9.00601]
[1732367836096,0.1,3406.5,3406.1,9.00601]
[1732367836311,0.1,3406.5,3406.2,8.85]
[1732367836691,0.2,3406.8,3406.2,8.85]
[1732367836934,0.1,3406.5,3406.2,8.85]
[1732367838016,0.1,3406.8,3406.2,8.85]
[1732367838195,0.1,3406.6,3406.3,1.04101]
[1732367838392,0.1,3406.7,3406.2,8.85]
[1732367838604,2.35780757,3406.5,3406.2,8.85]
[1732367838832,2.35780757,3406.5,3406.0,1.5601]
[1732367838833,0.1,3406.4,3406.0,0.044]
[1732367839031,0.1,3406.3,3406.1,8.85]
[1732367839238,0.54848034,3406.3,3406.1,8.85]
[1732367839440,0.1,3406.3,3406.1,8.85]
[1732367839605,0.1,3406.1,3406.0,0.044]
[1732367839932,5.45780757,3406.1,3406.0,0.044]
[1732367843104,7.09970757,3406.1,3406.0,0.044]
[1732367843333,7.82260984,3406.1,3406.0,0.044]
[1732367845525,3.1,3406.1,3406.0,0.044]
[1732367845727,0.1,3406.1,3406.0,0.044]
[1732367845907,0.2,3406.1,3406.0,0.044]
[1732367847142,2.55780757,3406.1,3406.0,0.044]
[1732367847813,3.13638462,3406.1,3406.0,0.044]
[1732367848316,0.77857705,3406.1,3406.0,0.044]
[1732367848515,0.77857705,3406.1,3406.0,0.042]
[1732367849850,3.13638462,3406.1,3406.0,0.042]
[1732367850186,6.13638462,3406.1,3406.0,0.042]
[1732367850613,7.76788462,3406.1,3406.0,0.042]
[1732367850807,8.54760459,3406.1,3406.0,0.042]
[1732367851447,8.54760459,3406.1,3406.0,0.04]
[1732367853463,6.18979702,3406.1,3406.0,0.04]
[1732367853611,8.54760459,3406.1,3406.0,0.04]
[1732367856742,0.77857705,3406.1,3406.0,0.04]
[1732367856959,0.57857705,3406.1,3406.0,8.89]
[1732367857153,0.1,3406.8,3406.1,1.5634]
[1732367857341,0.1,3406.8,3406.2,8.87935679]
[1732367857550,0.1,3406.5,3406.2,8.85]
[1732367857795,0.1,3406.5,3406.2,9.98424]
[1732367858296,0.1,3406.6,3406.2,9.98424]
[1732367858457,0.1,3406.5,3406.2,9.98424]
[1732367858795,0.1,3406.9,3406.3,1.158764]
[1732367859005,2.45780757,3407.3,3406.4,1.5634]
[1732367859169,0.1,3407.3,3406.5,10.03950318]
[1732367859492,0.1,3407.3,3406.6,1.5634]
[1732367859712,0.1,3407.3,3406.7,0.02935018]
[1732367860467,0.1,3407.4,3406.7,0.02935017]
[1732367860667,0.1,3407.4,3406.8,2.60767502]
[1732367862502,0.1,3407.4,3406.9,1.5634]
[1732367862813,0.2,3407.7,3407.0,0.02934811]
[1732367862973,0.2,3407.7,3407.1,0.26370231]
[1732367863173,0.2,3407.7,3407.2,8.85]
[1732367865295,0.1,3407.9,3407.2,8.85]
[1732367865496,0.2,3407.9,3407.3,0.885]
[1732367865699,0.1,3407.9,3407.4,1.6204]
[1732367865924,0.1,3407.9,3407.3,9.76434706]
[1732367865925,1.6876,3407.7,3407.3,8.85]
[1732367866219,0.1,3407.5,3407.3,8.85]
[1732367866514,0.1,3407.7,3407.3,8.85]
[1732367866873,0.1,3407.7,3407.3,9.735]
[1732367867122,0.1293151,3407.7,3407.3,9.735]
[1732367867282,0.1,3407.7,3407.3,9.735]
[1732367868321,3.1,3407.4,3407.3,8.85]
[1732367869478,0.04584473,3407.5,3407.3,8.85]
[1732367870115,0.04584473,3407.5,3407.3,9.735]
[1732367870325,0.14584473,3407.5,3407.3,9.735]
[1732367870614,0.04584473,3407.5,3407.4,1.6204]
[1732367871108,0.04584473,3407.5,3407.4,10.4704]
[1732367871816,2.4036523,3407.5,3407.4,8.85]
[1732367871990,2.5036523,3407.5,3407.4,8.85]
[1732367872312,6.16401753,3407.5,3407.4,8.85]
[1732367872517,2.4036523,3407.5,3407.4,8.85]
[1732367872834,0.04584473,3407.5,3407.4,1.6204]
[1732367873991,0.04584473,3407.5,3407.4,1.4248]
[1732367875123,2.4036523,3407.5,3407.4,1.4248]
[1732367876412,0.04584473,3407.5,3407.4,1.4228]
[1732367877127,0.04584473,3407.5,3407.4,10.2728]
[1732367877986,2.4036523,3407.5,3407.4,10.2728]
[1732367878197,6.14694904,3407.5,3407.4,8.85]
[1732367878429,5.6036523,3407.5,3407.4,8.85]
[1732367879599,0.1,3407.3,3406.6,1.5594]
[1732367879793,2.35780757,3406.7,3406.6,10.4094]
[1732367880104,2.35780757,3406.7,3406.6,8.85]
[1732367883095,2.35780757,3406.7,3406.3,1.5594]
[1732367883096,2.35780757,3406.7,3406.4,8.85]
[1732367884118,2.91358833,3406.7,3406.4,8.85]
[1732367884325,0.1,3406.2,3406.1,8.85]
[1732367884500,5.45780757,3406.2,3406.1,8.85]
[1732367884818,5.45780757,3406.2,3406.0,0.04]
[1732367884999,3.1,3406.1,3406.0,0.04]
[1732367885316,3.18370065,3406.1,3406.0,0.04]
[1732367885617,5.63036657,3406.1,3406.0,0.04]
[1732367885925,0.18370065,3405.3,3405.0,8.85]
[1732367886223,2.35780757,3405.1,3404.9,8.85]
[1732367886884,0.1,3405.0,3404.9,8.85]
[1732367887091,0.08370065,3405.3,3404.9,0.90026793]
[1732367887291,0.08370065,3405.3,3404.9,0.9296343]
[1732367887482,0.08370065,3405.3,3404.9,0.90026793]
[1732367887688,0.08370065,3405.3,3404.6,8.85]
[1732367887884,2.44150822,3405.5,3404.9,0.02936637]
[1732367888138,2.44150822,3406.3,3405.1,1.6112]
[1732367888342,2.35780757,3406.7,3405.5,1.6112]
[1732367888635,2.35780757,3406.7,3405.2,9.82797837]
[1732367888636,2.44150822,3406.7,3405.6,1.80167496]
[1732367888809,0.1293151,3406.6,3405.6,1.64055496]
[1732367889009,0.08370065,3406.3,3405.6,1.6112]
[1732367889184,2.35780757,3407.1,3405.8,1.6112]
[1732367889387,2.35780757,3407.1,3405.2,0.96491842]
[1732367889388,0.08370065,3407.0,3406.0,1.6112]
[1732367889691,0.08370065,3407.0,3406.1,0.02935243]
[1732367890229,0.08370065,3407.0,3406.0,1.64055244]
[1732367890724,0.08370065,3407.0,3406.1,1.04905524]
[1732367890927,0.08370065,3407.0,3406.3,1.6112]
[1732367891551,3.18370065,3407.0,3406.3,1.6112]
[1732367892770,0.1,3406.8,3406.3,1.6112]
[1732367892967,0.08370065,3406.4,3405.9,8.85]
[1732367893257,0.08370065,3406.4,3404.5,0.01629935]
[1732367893258,0.1,3406.3,3405.6,1.6112]
[1732367893439,0.1,3406.1,3405.9,8.85]
[1732367894020,5.35780757,3406.3,3405.9,8.85]
[1732367894234,0.1,3406.1,3405.9,8.85]
[1732367896245,5.45780757,3406.3,3405.9,8.85]
[1732367896452,2.45780757,3406.3,3405.9,8.85]
[1732367896632,5.45780757,3406.3,3405.9,8.85]
[1732367898162,0.08370065,3406.1,3405.7,8.85]
[1732367898366,0.1,3405.8,3405.1,1.6645]
[1732367898573,0.1,3405.6,3405.2,8.85]
[1732367899377,0.02534805,3405.5,3405.2,8.85]
[1732367899967,0.12534805,3405.4,3405.2,8.85]
[1732367900373,1.5753,3405.3,3405.2,8.85]
[1732367901035,0.02534805,3405.4,3405.2,8.85]
[1732367901470,0.12534805,3404.9,3404.8,0.1526793]
[1732367901770,2.48315562,3404.9,3404.8,0.1526793]
[1732367901977,6.03440269,3404.9,3404.8,0.1526793]
[1732367902144,0.12534805,3402.9,3402.8,0.02937477]
[1732367902338,0.12534805,3402.9,3399.8,14.25]
[1732367902339,0.1,3403.2,3402.4,1.6645]
[1732367902538,0.12534805,3403.3,3402.4,1.69388654]
[1732367902807,0.1,3403.0,3402.5,0.51075547]
[1732367903076,0.1,3402.8,3402.3,3.10333471]
[1732367903274,0.1,3402.3,3402.0,1.6645]
[1732367903485,0.1,3402.3,3401.3,0.1526793]
[1732367903486,0.1,3402.3,3401.6,4.76783471]
[1732367903770,0.1,3402.3,3401.6,5.09637457]
[1732367904179,5.38315562,3402.7,3401.7,0.02939382]
[1732367904180,2.38315562,3402.7,3401.7,0.02939382]
[1732367904477,0.1,3402.4,3401.7,0.54196977]
[1732367904689,0.1,3402.4,3401.7,0.02939293]
[1732367904976,0.02534805,3402.7,3401.7,0.0293927]
[1732367905276,0.02534805,3402.7,3401.8,0.20224326]
[1732367905474,0.1,3402.6,3401.8,0.20224326]
[1732367905772,0.1,3403.0,3401.9,0.02939081]
[1732367905971,0.34831556,3403.0,3402.0,3.10333471]
[1732367906174,0.1,3402.8,3402.0,3.10333471]
[1732367906377,0.02534805,3402.7,3402.0,3.10333471]
[1732367906598,0.12534805,3402.8,3402.0,3.10333471]
[1732367906768,0.02534805,3402.7,3402.0,3.43683129]
[1732367907099,0.12534805,3402.8,3402.0,3.43683129]
[1732367907264,3.24831556,3403.0,3402.0,3.43683129]
[1732367907265,0.1,3402.6,3402.0,3.10333471]
[1732367907454,0.1,3402.4,3401.7,3.10333471]
[1732367909595,4.6248,3402.6,3401.7,3.13272847]
[1732367909798,0.1,3402.6,3401.7,3.13272847]
[1732367910403,2.38315562,3402.7,3401.7,3.10333471]
[1732367910404,0.1,3402.4,3401.7,3.10333471]
[1732367911258,0.1,3402.4,3401.3,0.1526793]
[1732367911259,0.1,3401.9,3401.3,0.1526793]
[1732367911599,0.02534805,3401.8,3401.3,3.25601401]
[1732367911968,0.1,3401.6,3401.3,0.1526793]
[1732367912697,0.65124707,3401.6,3401.3,0.1526793]
[1732367912898,0.1,3401.6,3401.3,0.1526793]
[1732367913260,0.1,3401.4,3401.3,0.1526793]
[1732367913795,0.1,3401.4,3401.3,0.10683457]
[1732367914001,0.02534805,3401.6,3401.3,0.10683457]
[1732367914206,0.1,3401.6,3401.3,0.10683457]
[1732367915804,0.12534805,3402.1,3401.4,1.6602]
[1732367916109,3.12534805,3402.1,3401.4,1.6602]
[1732367916315,3.98260757,3402.6,3401.5,3.13272979]
[1732367916475,0.1,3402.5,3401.6,3.10333471]
[1732367916674,0.1,3402.5,3401.7,0.02939146]
[1732367916905,0.1293151,3402.5,3401.7,0.49696296]
[1732367917074,0.02534805,3402.4,3401.8,1.6055]
[1732367917277,0.02534805,3402.4,3401.8,2.12901891]
[1732367918211,0.02534805,3402.4,3401.6,3.10333471]
[1732367918212,0.1,3402.1,3401.6,3.10333471]
[1732367918379,0.55,3402.2,3401.6,3.10333471]
[1732367918710,0.1,3402.3,3401.6,3.10333471]
[1732367918869,0.02534805,3402.4,3401.7,0.02939337]
[1732367919070,2.35780757,3403.0,3401.7,0.02939293]
[1732367919296,0.1,3403.4,3401.8,3.10333471]
[1732367919508,0.1,3403.4,3401.9,3.13271929]
[1732367919713,0.12534805,3403.0,3401.9,3.13271929]
[1732367919917,0.1,3402.8,3401.9,3.13271929]
[1732367920076,0.1,3403.3,3402.0,2.00818608]
[1732367920414,0.1,3403.3,3402.1,0.02938855]
[1732367920415,0.12534805,3403.3,3402.1,0.02938855]
[1732367920573,0.12534805,3403.0,3402.2,0.51409093]
[1732367920778,3.12534805,3403.3,3402.3,0.02938709]
[1732367921119,2.35780757,3403.4,3402.4,4.76353471]
[1732367921278,0.1,3403.7,3402.5,0.56008398]
[1732367921610,0.02534805,3403.9,3402.7,1.6602]
[1732367921775,0.02534805,3403.9,3402.8,0.02937916]
[1732367921985,2.35780757,3404.2,3403.0,1.6602]
[1732367922323,0.12534805,3404.3,3403.1,0.19833493]
[1732367922614,0.02534805,3403.9,3403.1,0.16895792]
[1732367922912,0.02534805,3403.9,3403.0,1.68957942]
[1732367923274,0.02534805,3403.9,3403.0,1.6602]
[1732367923475,0.02534805,3403.9,3403.0,1.68957944]
[1732367923914,2.45780757,3404.0,3403.0,1.68957944]
[1732367924076,0.02534805,3403.9,3403.0,2.16887085]
[1732367924482,2.45780757,3404.0,3403.0,2.16887085]
[1732367924731,2.45780757,3404.0,3403.0,2.13949141]
[1732367924732,0.1,3403.8,3403.0,2.13949141]
[1732367925008,0.1,3403.5,3402.6,1.6511]
[1732367925212,0.1,3403.3,3402.6,1.6511]
[1732367925583,0.1,3403.0,3402.6,1.6511]
[1732367926122,0.12534805,3403.4,3402.6,1.6511]
[1732367926608,2.48315562,3403.6,3402.6,1.68048469]
[1732367926815,6.20090108,3403.6,3402.6,1.68048469]
[1732367926984,0.02534805,3403.4,3402.6,1.68048469]
[1732367927317,6.17555303,3403.6,3402.6,1.68048469]
[1732367927500,0.02534805,3403.4,3402.6,1.68048469]
[1732367928619,6.17555303,3403.6,3402.6,1.68048469]
[1732367928801,2.35780757,3403.6,3402.6,2.15886663]
[1732367928980,1.5784,3404.0,3402.7,2.2011]
[1732367928981,2.45780757,3404.0,3402.7,2.2011]
[1732367929202,2.35780757,3404.4,3403.1,0.55]
[1732367929399,2.35780757,3404.0,3403.3,1.6511]
[1732367929713,2.59358833,3404.0,3403.3,1.6511]
[1732367929912,0.02085781,3404.1,3403.3,1.6511]
[1732367930113,0.12085781,3404.1,3403.3,1.6511]
[1732367930334,0.02085781,3404.1,3403.3,1.6511]
[1732367930706,0.02085781,3404.1,3403.4,0.02937793]
[1732367931042,0.02085781,3404.1,3403.5,3.10333471]
[1732367932886,0.1,3404.3,3403.6,0.02937581]
[1732367933004,0.1,3404.6,3403.8,1.6511]
[1732367933201,2.35780757,3404.8,3403.9,3.68270813]
[1732367933404,0.02085781,3404.8,3404.1,0.55]
[1732367933807,2.35780757,3404.3,3404.0,3.10333471]
[1732367934008,0.1,3404.6,3404.1,3.10333471]
[1732367934637,0.1293151,3404.6,3404.1,3.10333471]
[1732367935227,0.02085781,3404.8,3404.2,0.55]
[1732367935705,0.05017291,3404.8,3404.2,0.55]
[1732367935902,0.1,3404.7,3404.1,3.10333471]
[1732367936300,2.45780757,3404.7,3404.1,3.10333471]
[1732367936732,2.70860562,3404.7,3404.1,3.10333471]
[1732367937140,2.70860562,3404.7,3404.2,3.10333471]
[1732367938035,2.60860562,3404.7,3404.2,3.10333471]
[1732367938368,0.35079805,3404.7,3404.2,3.10333471]
[1732367938536,0.1,3404.7,3404.2,3.10333471]
[1732367939056,0.1,3404.3,3404.2,3.10333471]
[1732367939661,0.1,3404.5,3404.2,3.10333471]
[1732367940158,0.1,3404.5,3403.9,3.10333471]
[1732367940346,0.1,3404.7,3404.0,0.55]
[1732367940546,0.1,3404.9,3404.0,0.55]
[1732367940738,0.02085781,3404.8,3404.0,0.55]
[1732367940940,0.02085781,3404.8,3404.1,0.02937219]
[1732367941248,0.02085781,3404.8,3404.0,0.57937219]
[1732367941423,0.02085781,3404.8,3404.0,1.09989169]
[1732367942879,0.1,3404.7,3404.0,1.09989169]
[1732367943030,0.1,3404.7,3404.0,0.55]
[1732367943241,0.1,3404.7,3404.2,0.55]
[1732367943581,0.02085781,3404.8,3404.2,0.55]
[1732367943865,0.02085781,3404.9,3404.2,0.55]
[1732367944542,0.1,3404.7,3404.2,0.55]
[1732367944888,2.07498489,3404.7,3404.2,0.55]
[1732367945557,1.97498489,3404.7,3404.2,0.55]
[1732367945890,0.1,3404.5,3404.2,0.55]
[1732367946177,0.5990678,3405.1,3404.4,0.55]
[1732367946380,0.1,3405.7,3404.6,2.1619]
[1732367946547,1.9958427,3406.2,3404.8,5.1619]
[1732367946882,1.97498489,3406.6,3405.3,1.6119]
[1732367947080,1.97498489,3406.6,3405.5,1.6119]
[1732367947256,2.18456916,3406.6,3405.6,0.57935481]
[1732367947854,2.18456916,3406.6,3405.8,0.55]
[1732367948065,2.56398041,3407.0,3406.0,0.55]
[1732367948267,0.02085781,3406.9,3406.2,0.55]
[1732367948593,0.02085781,3406.8,3406.2,0.55]
[1732367949710,0.02085781,3407.6,3406.5,1.6119]
[1732367949855,0.02085781,3407.6,3406.8,0.55]
[1732367950062,0.1,3407.1,3406.9,3.10333471]
[1732367950583,0.34788864,3407.1,3406.9,3.10333471]
[1732367950952,0.02085781,3407.3,3407.0,0.55]
[1732367951161,0.02085781,3407.3,3406.9,3.10333471]
[1732367951377,0.0293151,3407.6,3406.9,3.10333471]
[1732367951378,0.1,3407.1,3406.9,3.10333471]
[1732367952375,0.02085781,3407.0,3406.9,3.10333471]
[1732367952775,0.12085781,3406.5,3405.9,3.10333471]
[1732367953093,2.45802854,3406.0,3405.9,3.10333471]
[1732367953299,0.1,3405.8,3405.5,3.10333471]
[1732367953591,0.1,3405.6,3405.5,3.10333471]
[1732367953983,2.45802854,3405.6,3405.5,3.10333471]
[1732367954179,5.47888635,3405.6,3405.5,3.10333471]
[1732367954383,0.02085781,3405.4,3403.8,1.6119]
[1732367954559,0.84788864,3405.3,3404.0,1.6119]
[1732367954759,0.02085781,3405.4,3404.1,0.02936816]
[1732367954966,2.45802854,3405.2,3404.1,0.02936816]
[1732367955170,2.47888635,3405.2,3404.0,1.64126816]
[1732367955359,0.1,3404.8,3404.1,3.10333471]
[1732367956003,0.12085781,3404.7,3404.0,1.6119]
[1732367956298,0.1,3404.6,3404.0,4.71523471]
[1732367956494,0.1,3404.4,3404.0,4.71523471]
[1732367956705,0.1,3404.4,3404.0,3.10333471]
[1732367956998,0.1,3404.1,3403.7,1.6119]
[1732367957196,0.1,3404.0,3403.7,1.6119]
[1732367957562,2.37888635,3404.4,3403.7,1.6119]
[1732367957769,0.02085781,3404.4,3403.8,0.02937816]
[1732367957996,0.1,3404.6,3403.9,0.02937318]
[1732367958203,0.1,3404.6,3403.9,0.16412732]
[1732367958390,0.1,3404.6,3404.0,0.55]
[1732367959058,2.35802854,3405.2,3404.2,0.55]
[1732367959263,1.55685781,3405.5,3404.5,1.6119]
[1732367959264,0.02085781,3405.5,3404.5,1.6119]
[1732367959494,2.45802854,3405.6,3404.6,0.74055502]
[1732367959796,2.45802854,3406.0,3404.6,0.57936502]
[1732367960100,0.02085781,3406.3,3404.9,0.55]
[1732367960413,0.02085781,3406.3,3405.1,0.55]
[1732367960565,0.1,3406.2,3405.2,0.02936012]
[1732367960962,0.1,3406.2,3405.1,0.55]
[1732367961270,2.35802854,3406.4,3405.4,0.55]
[1732367961476,2.35802854,3406.4,3405.6,0.55]
[1732367961671,2.37888635,3406.4,3405.8,0.55]
[1732367962165,2.35802854,3406.4,3405.9,3.10333471]
[1732367962499,0.1,3406.5,3406.0,3.10333471]
[1732367962662,0.02085781,3406.4,3406.1,3.10333471]
[1732367962862,0.02085781,3406.4,3405.9,3.10333471]
[1732367963091,0.02085781,3406.4,3406.0,3.10333471]
[1732367964107,0.1,3406.5,3405.9,3.10333471]
[1732367964565,0.02085781,3406.7,3406.0,0.0293568]
[1732367964918,0.1,3407.0,3406.2,0.55]
[1732367965203,0.02085781,3407.8,3406.6,0.55]
[1732367965361,0.1,3407.7,3406.8,0.55]
[1732367965564,0.1,3407.5,3406.9,3.10333471]
[1732367965998,0.02085781,3407.7,3407.0,0.57934839]
[1732367966404,0.12085781,3407.7,3407.0,0.55]
[1732367967027,0.02085781,3407.7,3407.0,0.55]
[1732367967333,0.70290031,3408.0,3407.3,0.55]
[1732367967537,0.60290031,3408.0,3407.4,3.10333471]
[1732367967829,0.1,3408.7,3407.5,4.20434152]
[1732367968001,0.02085781,3408.6,3407.7,0.55]
[1732367968203,0.02085781,3408.6,3407.7,0.57934161]
[1732367968527,0.1,3408.7,3407.9,2.1133]
[1732367968902,0.12085781,3408.7,3407.9,2.1133]
[1732367970304,0.1,3408.7,3408.0,0.02933733]
[1732367970511,0.1,3408.7,3407.9,2.14263734]
[1732367970708,0.1,3408.7,3408.1,0.55]
[1732367971030,0.1,3408.5,3408.0,0.55983489]
[1732367971231,0.1,3408.3,3407.8,3.10333471]
[1732367971435,2.47888635,3408.3,3407.8,3.10333471]
[1732367971938,2.47888635,3408.3,3403.9,1.20486223]
[1732367971939,0.1,3407.8,3407.6,3.10333471]
[1732367972141,0.1,3407.8,3407.1,3.10333471]
[1732367972301,0.1,3407.8,3407.1,3.56999818]
[1732367973594,0.1,3407.6,3407.1,3.56999818]
[1732367973818,0.1,3407.6,3407.1,3.10333471]
[1732367975020,0.1293151,3407.6,3407.1,3.10333471]
[1732367975530,0.02085781,3407.4,3407.2,3.10333471]
[1732367975739,0.1,3407.3,3407.2,3.10333471]
[1732367976308,0.1,3407.3,3406.7,3.10333471]
[1732367976609,0.1,3407.3,3406.6,1.5081]
[1732367976610,0.1,3407.3,3406.8,3.10333471]
[1732367977617,0.12085781,3407.0,3406.8,3.10333471]
[1732367977832,0.1293151,3407.0,3406.8,3.10333471]
[1732367978017,0.15017291,3407.0,3406.8,3.10333471]
[1732367978598,0.15017291,3407.0,3405.2,0.02935369]
[1732367978599,0.1,3406.2,3405.6,1.5081]
[1732367978847,0.1,3406.2,3405.7,3.10333471]
[1732367979003,0.1293151,3406.2,3405.7,3.10333471]
[1732367979516,0.1,3406.2,3405.7,3.10333471]
[1732367979931,0.1293151,3406.2,3405.7,3.10333471]
[1732367980102,0.1,3406.2,3405.7,3.10333471]
[1732367980299,0.1,3405.9,3405.7,3.10333471]
[1732367980504,0.1,3405.5,3405.1,1.5081]
[1732367980845,0.1,3405.5,3405.1,3.10333471]
[1732367981359,0.1,3405.5,3404.7,1.5081]
[1732367981360,0.1,3405.4,3404.8,3.10333471]
[1732367981639,0.1,3405.2,3404.8,3.10333471]
[1732367981849,0.1,3405.0,3404.1,1.5081]
[1732367982156,0.1,3405.0,3404.2,3.10333471]
[1732367982459,0.1,3404.9,3404.2,3.10333471]
[1732367982641,0.1,3404.4,3404.2,0.02937206]
[1732367982845,0.1,3404.5,3403.6,4.64080969]
[1732367983047,0.1,3404.5,3403.7,0.46408097]
[1732367983424,0.1,3404.5,3403.8,0.029375]
[1732367983754,0.0293151,3405.3,3403.8,0.029375]
[1732367983755,0.02085781,3404.9,3403.8,0.029375]
[1732367983956,0.1,3405.0,3404.0,0.55]
[1732367984254,0.1,3405.2,3404.0,0.5793712]
[1732367984451,0.02085781,3405.2,3404.2,0.55]
[1732367984652,0.02085781,3405.2,3404.4,0.55]
[1732367984855,0.1,3405.0,3404.3,0.51889712]
[1732367985067,0.1,3405.0,3404.2,0.55]
[1732367986133,0.1293151,3405.0,3404.2,0.55]
[1732367986564,0.1,3405.0,3404.2,0.55]
[1732367986726,0.1,3405.0,3404.3,0.518897]
[1732367987355,0.02085781,3405.2,3404.4,0.57936993]
[1732367987861,2.47888635,3405.5,3404.6,0.55]
[1732367988028,0.02085781,3405.1,3404.6,0.55]
[1732367989059,0.02085781,3405.1,3404.5,3.10333471]
[1732367989060,0.1,3404.6,3404.5,3.10333471]
[1732367989230,0.1,3404.6,3404.1,4.71293471]
[1732367990248,0.1,3404.8,3404.1,4.71293471]
[1732367990457,0.1,3404.9,3404.2,0.57937321]
[1732367990764,0.1,3404.9,3404.2,0.55]
[1732367990937,0.1,3404.9,3404.2,1.45657974]
[1732367991323,2.47888635,3405.1,3404.3,0.02937054]
[1732367991523,2.47888635,3405.1,3404.2,1.45657974]
[1732367991952,2.40546535,3405.1,3404.2,1.45657974]
[1732367992362,0.1,3404.9,3404.2,1.45657974]
[1732367992561,0.1,3404.9,3404.3,0.9198885]
[1732367993737,0.1,3404.8,3404.1,4.71293471]
[1732367994078,0.1,3404.5,3404.1,4.71293471]
[1732367994231,0.1,3404.5,3404.2,3.10333471]
[1732367994232,0.1,3404.3,3404.2,3.10333471]
[1732367994437,2.45802854,3404.5,3403.7,3.40333471]
[1732367994666,0.1,3404.8,3403.7,3.13271046]
[1732367994848,0.1293151,3404.8,3403.8,0.50094347]
[1732367995048,0.1,3404.5,3403.8,0.50094347]
[1732367995455,0.1,3404.3,3403.7,3.10333471]
[1732367996449,0.1,3404.3,3403.8,3.10333471]
[1732367996761,0.1,3404.3,3403.8,3.57427818]
[1732367997377,0.1,3404.3,3403.8,3.10333471]
[1732367999238,1.5086,3404.2,3403.8,3.10333471]
[1732368000344,1.5086,3404.2,3403.9,3.10333471]
[1732368000543,0.1,3404.3,3403.9,3.10333471]
[1732368001368,0.1,3404.0,3403.4,3.10333471]
[1732368001675,0.1,3404.0,3403.5,3.10333471]
[1732368003780,0.1,3403.8,3403.5,3.10333471]
[1732368004911,0.1,3403.6,3403.5,3.10333471]
[1732368005069,0.1,3403.6,3403.0,3.10333471]
[1732368005269,0.1,3403.4,3403.0,3.10333471]
[1732368009214,1.5157,3403.3,3403.0,3.10333471]
[1732368009414,1.5157,3403.3,3402.5,0.55]
[1732368009908,0.1,3403.4,3402.6,0.02938446]
[1732368010110,0.1,3403.4,3402.7,1.5225]
[1732368010282,0.1,3403.4,3402.8,0.55]
[1732368010497,0.1,3403.4,3402.9,0.21018821]
[1732368012513,0.1,3403.7,3403.0,3.10333471]
[1732368012682,0.1,3403.9,3403.1,0.57938215]
[1732368013022,0.1,3403.9,3403.1,0.93635229]
[1732368013169,0.1293151,3403.9,3403.1,0.55]
[1732368013370,0.1,3403.9,3403.1,0.55]
[1732368014117,0.1293151,3403.9,3403.1,0.55]
[1732368015177,0.1,3403.9,3403.1,0.9392903]
[1732368015476,1.5157,3404.5,3403.3,5.0725]
[1732368015697,0.1,3404.6,3403.5,0.55]
[1732368016005,0.1,3404.6,3403.6,0.02937295]
[1732368016371,0.1,3406.0,3404.0,0.55]
[1732368016372,1.5157,3405.5,3404.0,0.55]
[1732368016607,1.6157,3406.0,3404.5,1.5225]
[1732368016816,1.6157,3406.0,3404.6,0.57936237]
[1732368016817,1.5157,3406.0,3404.6,0.57936237]
[1732368017026,1.5157,3406.0,3404.9,1.5225]
[1732368017188,1.5157,3406.0,3405.0,3.68269578]
[1732368018088,1.5157,3406.0,3405.0,3.65333471]